Workbook

Sheet Anleitung

Sheet Rechnung_Mast
A1: Schweinemast GbR | B1: ← Betrieb | D1: =VLOOKUP("x",$I$8:$K$19,2,0) -> 850g tägl. Zunahme / 2,73 Durchgänge / 246kg Zuwachs
A2: Feldweg 99 | B2: ← Straße
A3: 98765 Überall | B3: ← PLZ Ort
A4: Bitte Phasen mit "x" auswählen | B4: x | C4: x | D4: x | E4: x
B5: Phase 1 | C5: Phase 2 | D5: Phase 3 | E5: Phase 4 | F5: Phase 5 | G5: Phase 6 | H5: Summe bzw. Ø: | I5: A U S W A H L | J5: MJ ME / kg Zuwachs: (nach Auswahl) | K5: =VLOOKUP("x",$I$8:$K$19,3,0) -> 36.5
A6: Abschnitt von … kg | B6: 28 | C6: =IF(AND(B7<>"",C4="x"),B7,"") -> 40 | D6: =IF(AND(C7<>"",D4="x"),C7,"") -> 65 | E6: 90 | H6: =MIN(B6:G6) -> 28 | J6: "Standardwert" | K6: =H13/(H7-H6) -> 36.31555556 | L6: =IF(K5<>"",K5/K6,1) -> 1.005078938
A7: Abschnitt bis … kg | B7: 40 | C7: 65 | D7: 90 | E7: 118 | H7: =MAX(B7:G7) -> 118
A8: ME, MJ / kg Futter | B8: 13.2 | C8: 13.2 | D8: 13 | E8: 13 | H8: =H14/H15 -> 13.06715476 | J8: 750g tägl. Zunahme / 2,47 Durchgänge / 222kg Zuwachs | K8: 38.3
A9: Rohprotein, g / kg Futter | B9: 165 | C9: 155 | D9: 140 | E9: 135 | H9: =H18/0.16/H15*1000 -> 144.0981698 | M9: vgl. DLG, Band 199: "Bilanzierung der Nährstoffaus-scheidungen landw. Nutztiere", 2. Auflage 2014
A10: Phosphor, g / kg Futter | B10: 4.4 | C10: 4.2 | D10: 4 | E10: 4 | H10: =H21/H15 -> 4.086514903 | I10: x | J10: 850g tägl. Zunahme / 2,73 Durchgänge / 246kg Zuwachs | K10: 36.5
A11: Futterpreis, EUR / dt | B11: 26 | C11: 25 | D11: 24 | E11: 24 | H11: =H16/H15*100 -> 24.43257452
J12: 950g tägl. Zunahme / 2,97 Durchgänge / 267kg Zuwachs | K12: 35
A13: Energiebedarf (MJ ME) - Standard: | B13: =IF(ISERROR(VLOOKUP(B7,Bereich,2)),"",VLOOKUP(B7,Bereich,2)-VLOOKUP(B6,Bereich,2)) -> 319.6 | C13: 789 | D13: 920 | E13: 1239.8 | H13: =SUM(B13:G13) -> 3268.4
A14: Energiebedarf (MJ ME) - (n. Eingabe): | B14: =IF(B6<>"",B13*Faktor,"") -> 321.2232285 | C14: 793.0072819 | D14: 924.6726227 | E14: 1246.096867 | H14: =SUM(B14:G14) -> 3285 | J14: Ebermast (50% Eber) / 2,73 Durchgänge / 246kg Zuwachs | K14: 34.6
A15: Futtermenge (kg): | B15: =IF(B6<>"",B14/B8,"") -> 24.33509307 | C15: 60.07630923 | D15: 71.12866328 | E15: 95.85360515 | H15: =SUM(B15:G15) -> 251.3936707
A16: Futterkosten (€): | B16: =IF(B6<>"",B11*B15/100,"") -> 6.327124198 | C16: 15.01907731 | D16: 17.07087919 | E16: 23.00486524 | H16: =SUM(B16:G16) -> 61.42194593 | J16: Ebermast (50% Eber) / 2,97 Durchgänge / 267kg Zuwachs | K16: 33.4 | M16: vgl. DLG-Merkblatt 418 (3. Auflage 10/2018)
A17: Futterkosten pro kg Zuwachs (€): | B17: =IF(B6<>"",B16/(B7-B6),"") -> 0.5272603498 | C17: 0.6007630923 | D17: 0.6828351675 | E17: 0.8216023299 | H17: =H16/(H7-H6) -> 0.6824660659
A18: N-Aufnahme (kg): | B18: =IF(B6<>"",B9*0.16*B15/1000,"") -> 0.642446457 | C18: 1.489892469 | D18: 1.593282058 | E18: 2.070437871 | H18: =SUM(B18:G18) -> 5.796058855 | J18: Ebermast (100% Eber) / 2,85 Durchg. / 256,5kg Zuwachs | K18: 32.8
A19: N-Ausscheidung (kg): | B19: =IF(B6<>"",B18-(B7-B6)*25.6/1000,"") -> 0.335246457 | C19: 0.8498924689 | D19: 0.9532820576 | E19: 1.353637871 | H19: =SUM(B19:G19) -> 3.492058855
A20: N-Aussch./Mastplatz u. Jahr (kg): | H20: =H19*K20 -> 9.533320673 | J20: Umtriebe: | K20: 2.73
A21: P-Aufnahme (g): | B21: =IF(B6<>"",B10*B15,"") -> 107.0744095 | C21: 252.3204988 | D21: 284.5146531 | E21: 383.4144206 | H21: =SUM(B21:G21) -> 1027.323982
A22: P-Ausscheidung (g): | B22: =IF(B6<>"",B21-(B7-B6)*5.1,"") -> 45.8744095 | C22: 124.8204988 | D22: 157.0146531 | E22: 240.6144206 | H22: 568.323982
A23: P2O5-Anfall (kg): | B23: =IF(B6<>"",B22*2.291/1000,"") -> 0.1050982722 | C23: 0.2859637627 | D23: 0.3597205703 | E23: 0.5512476376 | H23: 1.302030243
A24: P2O5-Anfall/Mastplatz u. Jahr (kg): | H24: =H23*K20 -> 3.554542563
A26: N-Ausscheidung pro kg Zuwachs (g): | B26: =IF(B6<>"",B19/(B7-B6)*1000,"") -> 27.93720475 | C26: 33.99569876 | D26: 38.1312823 | E26: 48.34420969 | H26: =H19/(H7-H6)*1000 -> 38.80065394
A27: P-Ausscheidung pro kg Zuwachs (g): | B27: =IF(B6<>"",B22/(B7-B6),"") -> 3.822867458 | C27: 4.992819951 | D27: 6.280586125 | E27: 8.593372164 | H27: =H22/(H7-H6) -> 6.314710911
A31: Anforderungen an das Futter für eine (sehr) stark N-/P-reduzierte Fütterung (DLG, 2014 u. 2018):
A32: Rohprotein: | B32: max. (144) 149 g/kg bei 750 g tägl. Zunahme
A33: " | B33: max. (144) 154 g/kg bei den übrigen Verfahren
A34: Phosphor: | B34: max. (4,1) 4,3 g/kg bei allen Verfahren
A37: B E M E R K U N G E N :

Sheet Rechnung_Ferkel
A1: Ferkelmast GbR | B1: ← Betrieb | D1: =VLOOKUP("x",$I$8:$K$17,2,0) -> 450g tägl. Zunahme / 7 Durchgänge / 140kg Zuwachs
A2: Feldweg 99 | B2: ← Straße
A3: 98765 Überall | B3: ← PLZ Ort
A4: Bitte Phasen mit "x" auswählen | B4: x | C4: x
B5: Phase 1 | C5: Phase 2 | D5: Phase 3 | E5: Phase 4 | F5: Phase 5 | G5: Phase 6 | H5: Summe bzw. Ø: | I5: A U S W A H L | J5: MJ ME / kg Zuwachs: (nach Auswahl) | K5: =VLOOKUP("x",$I$8:$K$17,3,0) -> 23.8
A6: Abschnitt von … kg | B6: 8 | C6: =IF(AND(B7<>"",C4="x"),B7,"") -> 15 | E6: =IF(AND(D7<>"",E4="x"),D7,"") ->  | F6: =IF(AND(E7<>"",F4="x"),E7,"") ->  | H6: =MIN(B6:G6) -> 8 | J6: "Standardwert" | K6: =H13/(H7-H6) -> 22.65 | L6: =IF(K5<>"",K5/K6,1) -> 1.050772627
A7: Abschnitt bis … kg | B7: 15 | C7: 28 | H7: =MAX(B7:G7) -> 28
A8: ME, MJ / kg Futter | B8: 13.8 | C8: 13.4 | H8: =H14/H15 -> 13.52688623 | I8: x | J8: 450g tägl. Zunahme / 7 Durchgänge / 140kg Zuwachs | K8: 23.8 | M8: vgl. DLG, Band 199: "Bilanzierung der Nährstoffaus-scheidungen landw. Nutztiere", 2. Auflage 2014
A9: Rohprotein, g / kg Futter | B9: 175 | C9: 170 | H9: =H18/0.16/H15*1000 -> 171.5860779
A10: Phosphor, g / kg Futter | B10: 5.1 | C10: 4.8 | H10: =H21/H15 -> 4.895164676 | J10: 500g tägl. Zunahme / 8 Durchgänge / 160kg Zuwachs | K10: 23.1
A11: Futterpreis, EUR / dt | B11: 40 | C11: 40 | H11: =H16/H15*100 -> 40
A13: Energiebedarf (MJ ME) - Standard: | B13: =IF(ISERROR(VLOOKUP(B7,Bereich,2)),"",VLOOKUP(B7,Bereich,2)-VLOOKUP(B6,Bereich,2)) -> 146.6 | C13: 306.4 | H13: =SUM(B13:G13) -> 453
A14: Energiebedarf (MJ ME) - (n. Eingabe): | B14: =IF(B6<>"",B13*Faktor,"") -> 154.0432671 | C14: 321.9567329 | H14: =SUM(B14:G14) -> 476
A15: Futtermenge (kg): | B15: =IF(B6<>"",B14/B8,"") -> 11.16255559 | C15: 24.02662186 | H15: =SUM(B15:G15) -> 35.18917745
A16: Futterkosten (€): | B16: =IF(B6<>"",B11*B15/100,"") -> 4.465022235 | C16: 9.610648743 | H16: =SUM(B16:G16) -> 14.07567098
A17: Futterkosten pro kg Zuwachs (€): | B17: =IF(B6<>"",B16/(B7-B6),"") -> 0.6378603193 | C17: 0.7392806725 | H17: =H16/(H7-H6) -> 0.7037835489
A18: N-Aufnahme (kg): | B18: =IF(B6<>"",B9*0.16*B15/1000,"") -> 0.3125515565 | C18: 0.6535241145 | H18: =SUM(B18:G18) -> 0.966075671
A19: N-Ausscheidung (kg): | B19: =IF(B6<>"",B18-(B7-B6)*25.6/1000,"") -> 0.1333515565 | C19: 0.3207241145 | H19: =SUM(B19:G19) -> 0.454075671
A20: N-Aussch./Mastplatz u. Jahr (kg): | H20: =H19*K20 -> 1.239626582 | J20: Umtriebe: | K20: 2.73
A21: P-Aufnahme (g): | B21: =IF(B6<>"",B10*B15,"") -> 56.9290335 | C21: 115.3277849 | H21: =SUM(B21:G21) -> 172.2568184
A22: P-Ausscheidung (g): | B22: =IF(B6<>"",B21-(B7-B6)*5.1,"") -> 21.2290335 | C22: 49.02778492 | H22: 70.25681841
A23: P2O5-Anfall (kg): | B23: =IF(B6<>"",B22*2.291/1000,"") -> 0.04863571574 | C23: 0.1123226552 | H23: 0.160958371
A24: P2O5-Anfall/Mastplatz u. Jahr (kg): | H24: =H23*K20 -> 0.4394163528
A26: N-Ausscheidung pro kg Zuwachs (g): | B26: =IF(B6<>"",B19/(B7-B6)*1000,"") -> 19.05022235 | C26: 24.67108573 | H26: =H19/(H7-H6)*1000 -> 22.70378355
A27: P-Ausscheidung pro kg Zuwachs (g): | B27: =IF(B6<>"",B22/(B7-B6),"") -> 3.032719071 | C27: 3.77136807 | H27: =H22/(H7-H6) -> 3.512840921
A31: Anforderungen an das Futter für eine (sehr) stark N-/P-reduzierte Fütterung (DLG, 2014 u. 2018):
A32: Rohprotein: | B32: max. (172) 178 g/kg bei beiden Verfahren
A33: Phosphor: | B33: max. (4,9) 5,1 g/kg bei beiden Verfahren
A36: B E M E R K U N G E N :

Sheet Daten
B1: 5 | D1: 5 | E1: 0 | H1: 5 | I1: 0
A2: Energiebedarf, MJ ME in Abschnitt | B2: 5 | C2: - | D2: 10 | E2: 99 | F2: =(E2-E1)/5 -> 19.8 | H2: 6 | I2: 19.8
A3: Energiebedarf, MJ ME in Abschnitt | B3: 5 | C3: - | D3: 15 | E3: 206 | F3: =(E3-E2)/5 -> 21.4 | H3: 7 | I3: 39.6
A4: Energiebedarf, MJ ME in Abschnitt | B4: 5 | C4: - | D4: 20 | E4: 318 | F4: 22.4 | H4: 8 | I4: 59.4
A5: Energiebedarf, MJ ME in Abschnitt | B5: 5 | C5: - | D5: 25 | E5: 438 | F5: 24 | H5: 9 | I5: 79.2
A6: Energiebedarf, MJ ME in Abschnitt | B6: 5 | C6: - | D6: 30 | E6: 562 | F6: 24.8 | H6: 10 | I6: 99
A7: Energiebedarf, MJ ME in Abschnitt | B7: 5 | C7: - | D7: 35 | E7: 694 | F7: 26.4 | H7: 11 | I7: 120.4
A8: Energiebedarf, MJ ME in Abschnitt | B8: 5 | C8: - | D8: 40 | E8: 832 | F8: 27.6 | H8: 12 | I8: 141.8
A9: Energiebedarf, MJ ME in Abschnitt | B9: 5 | C9: - | D9: 45 | E9: 978 | F9: 29.2 | H9: 13 | I9: 163.2
A10: Energiebedarf, MJ ME in Abschnitt | B10: 5 | C10: - | D10: 50 | E10: 1130 | F10: 30.4 | H10: 14 | I10: 184.6
A11: Energiebedarf, MJ ME in Abschnitt | B11: 5 | C11: - | D11: 55 | E11: 1288 | F11: 31.6 | H11: 15 | I11: 206
A12: Energiebedarf, MJ ME in Abschnitt | B12: 5 | C12: - | D12: 60 | E12: 1452 | F12: 32.8 | H12: 16 | I12: 228.4
A13: Energiebedarf, MJ ME in Abschnitt | B13: 5 | C13: - | D13: 65 | E13: 1621 | F13: 33.8 | H13: 17 | I13: 250.8
A14: Energiebedarf, MJ ME in Abschnitt | B14: 5 | C14: - | D14: 70 | E14: 1794 | F14: 34.6 | H14: 18 | I14: 273.2
A15: Energiebedarf, MJ ME in Abschnitt | B15: 5 | C15: - | D15: 75 | E15: 1972 | F15: 35.6 | H15: 19 | I15: 295.6
A16: Energiebedarf, MJ ME in Abschnitt | B16: 5 | C16: - | D16: 80 | E16: 2157 | F16: 37 | H16: 20 | I16: 318
A17: Energiebedarf, MJ ME in Abschnitt | B17: 5 | C17: - | D17: 85 | E17: 2347 | F17: 38 | H17: 21 | I17: 342
A18: Energiebedarf, MJ ME in Abschnitt | B18: 5 | C18: - | D18: 90 | E18: 2541 | F18: 38.8 | H18: 22 | I18: 366
A19: Energiebedarf, MJ ME in Abschnitt | B19: 5 | C19: - | D19: 95 | E19: 2741 | F19: 40 | H19: 23 | I19: 390
A20: Energiebedarf, MJ ME in Abschnitt | B20: 5 | C20: - | D20: 100 | E20: 2949 | F20: 41.6 | H20: 24 | I20: 414
A21: Energiebedarf, MJ ME in Abschnitt | B21: 5 | C21: - | D21: 105 | E21: 3167 | F21: 43.6 | H21: 25 | I21: 438
A22: Energiebedarf, MJ ME in Abschnitt | B22: 5 | C22: - | D22: 110 | E22: 3395 | F22: 45.6 | H22: 26 | I22: 462.8
A23: Energiebedarf, MJ ME in Abschnitt | B23: 5 | C23: - | D23: 115 | E23: 3632 | F23: 47.4 | H23: 27 | I23: 487.6
A24: Energiebedarf, MJ ME in Abschnitt | B24: 5 | C24: - | D24: 120 | E24: 3880 | F24: 49.6 | H24: 28 | I24: 512.4
H25: 29 | I25: 537.2
H26: 30 | I26: 562
H27: 31 | I27: 588.4
H28: 32 | I28: 614.8
H29: 33 | I29: 641.2
H30: 34 | I30: 667.6
H31: 35 | I31: 694
H32: 36 | I32: 721.6
H33: 37 | I33: 749.2
H34: 38 | I34: 776.8
H35: 39 | I35: 804.4
H36: 40 | I36: 832
H37: 41 | I37: 861.2
H38: 42 | I38: 890.4
H39: 43 | I39: 919.6
H40: 44 | I40: 948.8
H41: 45 | I41: 978
H42: 46 | I42: 1008.4
H43: 47 | I43: 1038.8
H44: 48 | I44: 1069.2
H45: 49 | I45: 1099.6
H46: 50 | I46: 1130
H47: 51 | I47: 1161.6
H48: 52 | I48: 1193.2
H49: 53 | I49: 1224.8
H50: 54 | I50: 1256.4
H51: 55 | I51: 1288
H52: 56 | I52: 1320.8
H53: 57 | I53: 1353.6
H54: 58 | I54: 1386.4
H55: 59 | I55: 1419.2
H56: 60 | I56: 1452
H57: 61 | I57: 1485.8
H58: 62 | I58: 1519.6
H59: 63 | I59: 1553.4
H60: 64 | I60: 1587.2
H61: 65 | I61: 1621
H62: 66 | I62: 1655.6
H63: 67 | I63: 1690.2
H64: 68 | I64: 1724.8
H65: 69 | I65: 1759.4
H66: 70 | I66: 1794
H67: 71 | I67: 1829.6
H68: 72 | I68: 1865.2
H69: 73 | I69: 1900.8
H70: 74 | I70: 1936.4
H71: 75 | I71: 1972
H72: 76 | I72: 2009
H73: 77 | I73: 2046
H74: 78 | I74: 2083
H75: 79 | I75: 2120
H76: 80 | I76: 2157
H77: 81 | I77: 2195
H78: 82 | I78: 2233
H79: 83 | I79: 2271
H80: 84 | I80: 2309
H81: 85 | I81: 2347
H82: 86 | I82: 2385.8
H83: 87 | I83: 2424.6
H84: 88 | I84: 2463.4
H85: 89 | I85: 2502.2
H86: 90 | I86: 2541
H87: 91 | I87: 2581
H88: 92 | I88: 2621
H89: 93 | I89: 2661
H90: 94 | I90: 2701
H91: 95 | I91: 2741
H92: 96 | I92: 2782.6
H93: 97 | I93: 2824.2
H94: 98 | I94: 2865.8
H95: 99 | I95: 2907.4
H96: 100 | I96: 2949
H97: 101 | I97: 2992.6
H98: 102 | I98: 3036.2
H99: 103 | I99: 3079.8
H100: 104 | I100: 3123.4
H101: 105 | I101: 3167
H102: 106 | I102: 3212.6
H103: 107 | I103: 3258.2
H104: 108 | I104: 3303.8
H105: 109 | I105: 3349.4
H106: 110 | I106: 3395
H107: 111 | I107: 3442.4
H108: 112 | I108: 3489.8
H109: 113 | I109: 3537.2
H110: 114 | I110: 3584.6
H111: 115 | I111: 3632
H112: 116 | I112: 3681.6
H113: 117 | I113: 3731.2
H114: 118 | I114: 3780.8
H115: 119 | I115: 3830.4
H116: 120 | I116: 3880
H117: 121 | I117: 3930
H118: 122 | I118: 3980
H119: 123 | I119: 4030
H120: 124 | I120: 4080
H121: 125 | I121: 4130
